bitfinex/quotes_BTCUSD_20251113
["timestamp","ask_amount","ask_price","bid_price","bid_amount"]
[1763039483558,0.2945145,102940.0,102930.0,0.49272117]
[1763039483762,0.2525545,102940.0,102930.0,0.49272117]
[1763039483976,0.10022657,102940.0,102930.0,0.49272117]
[1763039484957,0.37269566,102940.0,102930.0,0.47309852]
[1763039485197,0.37269566,102940.0,102930.0,0.49272117]
[1763039485923,0.10022657,102940.0,102930.0,0.49372117]
[1763039486342,0.05826657,102940.0,102930.0,0.71792436]
[1763039486592,0.24594453,102950.0,102940.0,0.19428793]
[1763039486705,0.04196,102950.0,102940.0,0.46595377]
[1763039486953,0.47671995,102960.0,102950.0,0.19426906]
[1763039487154,0.38496336,102960.0,102950.0,0.26650171]
[1763039487417,0.38496336,102960.0,102950.0,0.07223265]
[1763039487702,0.38496336,102960.0,102950.0,0.05261]
[1763039487862,0.38496336,102960.0,102950.0,0.04746265]
[1763039488213,0.60916655,102960.0,102950.0,0.02784]
[1763039488340,0.60916655,102960.0,102950.0,0.22210906]
[1763039488760,0.51867995,102960.0,102950.0,0.24687906]
[1763039488958,0.51867995,102960.0,102950.0,0.4907049]
[1763039488959,0.29451676,102960.0,102950.0,0.4907049]
[1763039489159,0.29451676,102960.0,102950.0,0.26650171]
[1763039489355,0.29551676,102960.0,102950.0,0.26650171]
[1763039489581,0.29651676,102960.0,102950.0,0.04746265]
[1763039489798,0.34947846,102960.0,102950.0,0.04746265]
[1763039490007,0.57268165,102960.0,102950.0,0.02784]
[1763039490206,0.57168165,102960.0,102950.0,0.02784]
[1763039490611,0.57168165,102960.0,102950.0,0.04746265]
[1763039490858,0.15322827,102960.0,102950.0,0.22210906]
[1763039491065,0.29451676,102960.0,102950.0,0.46888225]
[1763039491265,0.29451676,102960.0,102950.0,0.07003265]
[1763039491474,0.29451676,102960.0,102950.0,0.05041]
[1763039491795,0.29451676,102960.0,102950.0,0.05141]
[1763039492140,0.29447676,102960.0,102950.0,0.07103265]
[1763039492566,0.29447676,102960.0,102950.0,0.05141]
[1763039492777,0.33281528,102960.0,102950.0,0.05141]
[1763039493287,0.33281528,102960.0,102950.0,0.07103265]
[1763039493910,0.13856509,102960.0,102950.0,0.46988225]
[1763039494140,0.29447676,102960.0,102950.0,0.4895049]
[1763039494385,0.05826657,102960.0,102950.0,0.46988225]
[1763039494524,0.10022657,102960.0,102950.0,0.46988225]
[1763039494725,0.10022657,102960.0,102950.0,0.4895049]
[1763039495243,0.05826657,102960.0,102950.0,0.69408544]
[1763039495438,0.23310024,102970.0,102960.0,0.21387284]
[1763039495439,0.23619132,102970.0,102960.0,0.21387284]
[1763039495642,0.04196,102970.0,102960.0,0.48876603]
[1763039495859,0.04196,102970.0,102960.0,0.46914338]
[1763039496064,0.04196,102970.0,102960.0,0.48876603]
[1763039496724,0.04396,102970.0,102960.0,0.48876603]
[1763039496903,0.002,102970.0,102960.0,0.48876603]
[1763039497860,0.55750547,102980.0,102970.0,0.19423132]
[1763039498053,0.65390495,102980.0,102970.0,0.24492132]
[1763039498404,0.35858913,102980.0,102970.0,0.48874716]
[1763039498548,0.40054913,102980.0,102970.0,0.48874716]
[1763039498753,0.40054913,102980.0,102970.0,0.26454397]
[1763039498960,0.10122657,102980.0,102970.0,0.48874716]
[1763039499203,0.05926657,102980.0,102970.0,0.48874716]
[1763039499414,0.06026657,102980.0,102970.0,0.71295035]
[1763039499811,0.06026657,102980.0,102970.0,0.48874716]
[1763039500058,0.25447903,102980.0,102970.0,0.26454397]
[1763039500233,0.25447903,102980.0,102970.0,0.48874716]
[1763039500410,0.25447903,102980.0,102970.0,0.46912451]
[1763039500650,0.25447903,102980.0,102970.0,0.48874716]
[1763039501185,0.002,102980.0,102970.0,0.75491035]
[1763039501329,0.06026657,102980.0,102970.0,0.75491035]
[1763039502011,0.05926657,102980.0,102970.0,0.75491035]
[1763039502206,0.05826657,102980.0,102970.0,0.75491035]
[1763039502425,0.05826657,102980.0,102970.0,0.75691035]
[1763039503595,0.04196,102990.0,102980.0,0.21383511]
[1763039503791,0.12013394,102990.0,102980.0,0.4887283]
[1763039504597,0.29137301,103000.0,102990.0,0.21381626]
[1763039504768,0.30464878,103000.0,102990.0,0.26450626]
[1763039505167,0.30464878,103000.0,102990.0,0.07031265]
[1763039505824,0.75405516,103000.0,102990.0,0.01166]
[1763039506258,0.75505516,103000.0,102990.0,0.01166]
[1763039506877,0.75505516,103000.0,102990.0,0.03128265]
[1763039508179,0.19419361,102990.0,102980.0,0.45264552]
[1763039508395,0.19419361,102990.0,102980.0,0.27805584]
[1763039508604,0.19419361,102990.0,102980.0,0.07031265]
[1763039508994,0.19419361,102990.0,102980.0,0.24490246]
[1763039509236,0.19419361,102990.0,102980.0,0.07031265]
[1763039509422,0.19419361,102990.0,102980.0,0.07131265]
[1763039509423,0.4183968,102990.0,102980.0,0.07131265]
[1763039509697,0.4183968,102990.0,102980.0,0.05169]
[1763039509906,0.4183968,102990.0,102980.0,0.07131265]
[1763039510126,0.19419361,102990.0,102980.0,0.07131265]
[1763039510770,0.19419361,102990.0,102980.0,0.26552511]
[1763039511361,0.19419361,102990.0,102980.0,0.07131265]
[1763039512848,0.19419361,102990.0,102980.0,0.26552511]
[1763039514216,0.19419361,102990.0,102980.0,0.07131265]
[1763039514622,0.19419361,102990.0,102980.0,0.26552511]
[1763039515045,0.4183968,102990.0,102980.0,0.26552511]
[1763039515667,0.4183968,102990.0,102980.0,0.07131265]
[1763039518264,0.4183968,102990.0,102980.0,0.07110765]
[1763039519238,0.4183968,102990.0,102980.0,0.051485]
[1763039519372,0.19419361,102990.0,102980.0,0.051485]
[1763039519593,0.4183968,102990.0,102980.0,0.07110765]
[1763039520008,0.19419361,102990.0,102980.0,0.07110765]
[1763039520493,0.19419361,102990.0,102980.0,0.26532011]
[1763039520694,0.4183968,102990.0,102980.0,0.07110765]
[1763039520977,0.4183968,102990.0,102980.0,0.07190765]
[1763039521182,0.4183968,102990.0,102980.0,0.052285]
[1763039522220,0.4183968,102990.0,102980.0,0.052065]
[1763039522378,0.4183968,102990.0,102980.0,0.07168765]
[1763039522598,0.4183968,102990.0,102980.0,0.052065]
[1763039522828,0.4183968,102990.0,102980.0,0.07168765]
[1763039523193,0.88307512,102990.0,102980.0,0.001]
[1763039524470,0.88307512,102990.0,102980.0,0.02062265]
[1763039524689,0.21046555,102990.0,102980.0,0.001]
[1763039524888,0.19419361,102990.0,102980.0,0.001]
[1763039525092,0.49306052,102990.0,102980.0,0.001]
[1763039525292,0.49306052,102990.0,102980.0,0.02062265]
[1763039525905,0.49306052,102990.0,102980.0,0.001]
[1763039527077,0.53502052,102990.0,102980.0,0.001]
[1763039527288,0.49306052,102990.0,102980.0,0.001]
[1763039527521,0.53502052,102990.0,102980.0,0.001]
[1763039527684,0.63142,102990.0,102980.0,0.001]
[1763039528071,0.66057059,102990.0,102980.0,0.001]
[1763039530783,0.6696652,102990.0,102980.0,0.001]
[1763039531751,0.19423132,102970.0,102960.0,0.01190456]
[1763039531963,0.61274793,102970.0,102960.0,0.01190456]
[1763039532361,0.61274793,102970.0,102960.0,0.03152721]
[1763039532777,0.31388102,102970.0,102960.0,0.01190456]
[1763039532983,0.61274793,102970.0,102960.0,0.01290456]
[1763039533313,0.61274793,102970.0,102960.0,0.03352721]
[1763039534136,0.61274793,102970.0,102960.0,0.01390456]
[1763039534357,0.61274793,102970.0,102960.0,0.03352721]
[1763039534563,0.61274793,102970.0,102960.0,0.01390456]
[1763039534974,0.61274793,102970.0,102960.0,0.00224456]
[1763039535398,0.61274793,102970.0,102960.0,0.2161174]
[1763039535909,0.31388102,102970.0,102960.0,0.20867475]
[1763039536116,0.31388102,102970.0,102960.0,0.2282974]
[1763039536501,0.31388102,102970.0,102960.0,0.01442456]
[1763039536872,0.31388102,102970.0,102960.0,0.03404721]
[1763039537275,0.61274793,102970.0,102960.0,0.01442456]
[1763039537475,0.61274793,102970.0,102960.0,0.00224456]
[1763039538252,0.64190472,102970.0,102960.0,0.00224456]
[1763039538459,0.64190472,102970.0,102960.0,0.02186721]
[1763039539008,0.64190472,102970.0,102960.0,0.00224456]
[1763039539617,0.64190472,102970.0,102960.0,0.02186721]
[1763039540234,0.64190472,102970.0,102960.0,0.00224456]
[1763039540435,0.64190472,102970.0,102960.0,0.02186721]
[1763039541418,0.64190472,102970.0,102960.0,0.00224456]
[1763039541546,0.64190472,102970.0,102960.0,0.2673374]
[1763039541547,0.29445789,102970.0,102960.0,0.2673374]
[1763039542160,0.29445789,102970.0,102960.0,0.07308721]
[1763039542365,0.5933248,102970.0,102960.0,0.01442456]
[1763039542583,0.29445789,102970.0,102960.0,0.00224456]
[1763039542786,0.67499405,102970.0,102960.0,0.00224456]
[1763039543832,0.67499405,102970.0,102960.0,0.02186721]
[1763039544232,0.67499405,102970.0,102960.0,0.00224456]
[1763039544437,0.37612714,102970.0,102960.0,0.03015456]
[1763039544637,0.37612714,102970.0,102960.0,0.04977721]
[1763039544960,0.67499405,102970.0,102960.0,0.04977721]
[1763039545193,0.67499405,102970.0,102960.0,0.03404721]
[1763039545625,0.67499405,102970.0,102960.0,0.00224456]
[1763039546114,0.70414929,102970.0,102960.0,0.00224456]
[1763039547368,0.70414929,102970.0,102960.0,0.00124456]
[1763039547538,0.70514929,102970.0,102960.0,0.00124456]
[1763039547739,0.70514929,102970.0,102960.0,0.00024456]
[1763039547987,0.70614929,102970.0,102960.0,0.00024456]
[1763039548605,0.40728238,102970.0,102960.0,0.00024456]
[1763039548756,0.40728238,102970.0,102960.0,0.01986721]
[1763039548962,0.70614929,102970.0,102960.0,0.01986721]
[1763039549405,0.70614929,102970.0,102960.0,0.00024456]
[1763039549597,0.70614929,102970.0,102960.0,0.01986721]
[1763039549954,0.40728238,102970.0,102960.0,0.05213456]
[1763039550151,0.36532238,102970.0,102960.0,0.05213456]
[1763039550389,0.40728238,102970.0,102960.0,0.24638475]
[1763039551122,0.40728238,102970.0,102960.0,0.2660074]
[1763039552070,0.40728238,102970.0,102960.0,0.2423174]
[1763039552282,0.40728238,102970.0,102960.0,0.02844456]
[1763039552396,0.40728238,102970.0,102960.0,0.01267456]
[1763039552601,0.40728238,102970.0,102960.0,0.03229721]
[1763039552820,0.40528238,102970.0,102960.0,0.03229721]
[1763039553130,0.40528238,102970.0,102960.0,0.03329721]
[1763039553367,0.40528238,102970.0,102960.0,0.01367456]
[1763039553576,0.40528238,102970.0,102960.0,0.00124456]
[1763039554230,0.40528238,102970.0,102960.0,0.02086721]
[1763039554430,0.40528238,102970.0,102960.0,0.00124456]
[1763039554855,0.29445789,102970.0,102960.0,0.2433174]
[1763039555209,0.29445789,102970.0,102960.0,0.04906721]
[1763039555410,0.29445789,102970.0,102960.0,0.2433174]
[1763039555814,0.29445789,102970.0,102960.0,0.04906721]
[1763039556013,0.29445789,102970.0,102960.0,0.2670074]
[1763039556212,0.34624034,102970.0,102960.0,0.01367456]
[1763039556437,0.34624034,102970.0,102960.0,0.02944456]
[1763039557944,0.34624034,102970.0,102960.0,0.22369475]
[1763039558163,0.34624034,102970.0,102960.0,0.2670074]
[1763039558381,0.30428034,102970.0,102960.0,0.2670074]
[1763039558607,0.05826657,102970.0,102960.0,0.54625166]
[1763039558839,0.25247903,102980.0,102970.0,0.19423132]
[1763039559057,0.29443903,102980.0,102970.0,0.54498823]
[1763039559262,0.29443903,102980.0,102970.0,0.56461088]
[1763039559954,0.29443903,102980.0,102970.0,0.07151265]
[1763039560177,0.29443903,102980.0,102970.0,0.05189]
[1763039560557,0.29543903,102980.0,102970.0,0.0282]
[1763039560773,0.29543903,102980.0,102970.0,0.04782265]
[1763039560947,0.29643903,102980.0,102970.0,0.0282]
[1763039561620,0.31964587,102980.0,102970.0,0.04782265]
[1763039561765,0.31964587,102980.0,102970.0,0.24205397]
[1763039561964,0.31964587,102980.0,102970.0,0.26574397]
[1763039562202,0.31964587,102980.0,102960.0,0.01267456]
[1763039562203,0.19423132,102970.0,102960.0,0.01267456]
[1763039562409,0.49309823,102970.0,102960.0,0.00024456]
[1763039562644,0.59530594,102980.0,102960.0,0.19449475]
[1763039562856,0.19423132,102970.0,102960.0,0.20692475]
[1763039563063,0.19423132,102970.0,102960.0,0.2265474]
[1763039563276,0.19423132,102970.0,102960.0,0.01267456]
[1763039563472,0.57185196,102970.0,102960.0,0.00124456]
[1763039564057,0.57185196,102970.0,102960.0,0.02086721]
[1763039565377,0.57185196,102970.0,102960.0,0.00124456]
[1763039565930,0.57185196,102970.0,102960.0,0.02086721]
[1763039566137,0.27298505,102970.0,102960.0,0.00124456]
[1763039567330,0.27298505,102970.0,102960.0,0.02086721]
[1763039569429,0.27298505,102970.0,102960.0,0.03329721]
[1763039570480,0.27298505,102970.0,102960.0,0.2275474]
[1763039570881,0.27298505,102970.0,102960.0,0.03329721]
[1763039571739,0.27298505,102970.0,102960.0,0.2275474]
[1763039572148,0.28163327,102980.0,102970.0,0.21385397]
[1763039572357,0.29443903,102980.0,102970.0,0.56461088]
[1763039572805,0.05826657,102980.0,102970.0,0.56461088]
[1763039573028,0.29443903,102980.0,102970.0,0.56461088]
[1763039573455,0.29543903,102980.0,102970.0,0.56461088]
[1763039573719,0.29543903,102980.0,102970.0,0.56561088]
[1763039573856,0.10022657,102980.0,102970.0,0.56561088]
[1763039574067,0.29443903,102980.0,102970.0,0.56561088]
[1763039574558,0.29443903,102980.0,102970.0,0.54598823]
[1763039574689,0.29443903,102980.0,102970.0,0.56461088]
[1763039575121,0.29443903,102980.0,102970.0,0.56561088]
[1763039575474,0.10022657,102980.0,102970.0,0.54598823]
[1763039575878,0.05826657,102980.0,102970.0,0.56561088]
[1763039576082,0.25247903,102980.0,102970.0,0.26774397]
[1763039576508,0.25247903,102980.0,102970.0,0.05389]
[1763039576716,0.25247903,102980.0,102970.0,0.07351265]
[1763039576919,0.25247903,102980.0,102970.0,0.24812132]
[1763039577094,0.29443903,102980.0,102970.0,0.26774397]
[1763039578527,0.29443903,102980.0,102970.0,0.24812132]
[1763039578680,0.29443903,102980.0,102970.0,0.07351265]
[1763039580024,0.29443903,102980.0,102970.0,0.26774397]
[1763039580228,0.29443903,102980.0,102970.0,0.07351265]
[1763039581230,0.29443903,102980.0,102970.0,0.05389]
[1763039581633,0.29443903,102980.0,102970.0,0.07351265]
[1763039582318,0.29443903,102980.0,102970.0,0.05389]
[1763039582523,0.29443903,102980.0,102970.0,0.07351265]
[1763039584388,0.29443903,102980.0,102970.0,0.24812132]
[1763039584592,0.29443903,102980.0,102970.0,0.26774397]
[1763039584793,0.29443903,102980.0,102970.0,0.24812132]
[1763039584997,0.29443903,102980.0,102970.0,0.07351265]
[1763039585195,0.59330594,102980.0,102970.0,0.05389]
[1763039585419,0.67302686,102980.0,102970.0,0.05389]
[1763039585826,0.67302686,102980.0,102970.0,0.07351265]
[1763039586044,0.67302686,102980.0,102970.0,0.07251265]
[1763039586250,0.67302686,102980.0,102970.0,0.05289]
[1763039586989,0.85172869,102980.0,102970.0,0.05189]
[1763039587620,0.85172869,102980.0,102970.0,0.02845]
[1763039587621,1.07593649,102980.0,102970.0,0.02845]
[1763039588053,0.85172869,102980.0,102970.0,0.02845]
[1763039588264,0.85172869,102980.0,102970.0,0.05163]
[1763039588470,0.85172869,102980.0,102970.0,0.07125265]
[1763039588651,0.85172869,102980.0,102970.0,0.05163]
[1763039588869,0.82257555,102980.0,102970.0,0.05163]
[1763039589095,0.82257555,102980.0,102970.0,0.07125265]
[1763039590213,0.82257555,102980.0,102970.0,0.05163]
[1763039590800,0.82257555,102980.0,102970.0,0.07125265]
[1763039592057,1.04678335,102980.0,102970.0,0.02845]
[1763039592441,0.82257555,102980.0,102970.0,0.05163]
[1763039594837,0.82257555,102980.0,102970.0,0.07125265]
[1763039595037,0.82257555,102980.0,102970.0,0.05163]
[1763039597870,1.04678335,102980.0,102970.0,0.05163]
[1763039599896,0.82257555,102980.0,102970.0,0.05163]
[1763039604076,0.37415995,102980.0,102970.0,0.05163]
[1763039604282,0.82257555,102980.0,102970.0,0.05163]
[1763039604665,1.04678335,102980.0,102970.0,0.05163]
[1763039604876,0.82257555,102980.0,102970.0,0.05163]
[1763039605071,0.82257555,102980.0,102970.0,0.07125265]
[1763039606981,0.82257555,102980.0,102970.0,0.05163]
[1763039609227,0.82257555,102980.0,102970.0,0.07125265]
[1763039609556,0.82257555,102980.0,102970.0,0.05163]
[1763039610461,1.04678335,102980.0,102970.0,0.05115]
[1763039610705,0.82257555,102980.0,102970.0,0.05115]
[1763039611521,1.04678335,102980.0,102970.0,0.05115]
[1763039611716,1.04778335,102980.0,102970.0,0.05115]
[1763039613013,1.04878335,102980.0,102970.0,0.05115]
[1763039614601,0.82457555,102980.0,102970.0,0.05115]
[1763039614780,1.04878335,102980.0,102970.0,0.05115]
[1763039615468,1.05788863,102980.0,102970.0,0.05115]
[1763039617473,1.078874,102980.0,102970.0,0.05115]
[1763039618701,0.19423132,102970.0,102960.0,0.01267456]
[1763039618909,1.187462,102970.0,102960.0,0.00024456]
[1763039619122,1.64498669,102970.0,102960.0,0.00024456]
[1763039619348,1.66597517,102970.0,102960.0,0.00024456]
[1763039619562,1.69513392,102970.0,102960.0,0.00024456]
[1763039620247,1.69713392,102970.0,102960.0,0.00024456]
[1763039622015,1.69913392,102970.0,102960.0,0.00024456]
[1763039624066,1.94163392,102970.0,102960.0,0.00024456]
[1763039632542,1.94156724,102970.0,102960.0,0.00024456]
[1763039633051,0.19426906,102950.0,102940.0,0.01218]
[1763039633250,1.06351851,102950.0,102940.0,0.01218]
[1763039634016,0.39089511,102950.0,102940.0,0.01218]
[1763039634220,1.06351851,102950.0,102940.0,0.02739661]
[1763039635212,1.06351851,102950.0,102940.0,0.02839661]
[1763039635801,1.06351851,102950.0,102940.0,0.01322661]
[1763039635962,1.06351851,102950.0,102940.0,0.00104661]
[1763039636166,1.09268395,102950.0,102940.0,0.00104661]
[1763039637655,1.76530735,102950.0,102940.0,0.00104661]
[1763039637856,1.09268395,102950.0,102940.0,0.00104661]
[1763039638100,1.76530735,102950.0,102940.0,4.661e-05]
[1763039638316,1.76830735,102950.0,102940.0,4.661e-05]
[1763039639030,1.76830735,102950.0,102940.0,0.00053587]
[1763039640994,1.09568395,102950.0,102940.0,0.00053587]
[1763039641804,1.09568395,102950.0,102940.0,0.01181587]
[1763039643062,1.09568395,102950.0,102940.0,0.00053587]
[1763039646145,1.09568395,102950.0,102940.0,0.01238587]
[1763039646752,1.09568395,102950.0,102940.0,0.00053587]
[1763039646975,1.02137291,102950.0,102940.0,0.00053587]
[1763039648627,0.42306055,102950.0,102940.0,0.00053587]
[1763039648833,0.42306055,102950.0,102940.0,0.02830587]
[1763039648834,0.68025673,102950.0,102940.0,0.02830587]
[1763039649043,0.68025673,102950.0,102940.0,0.05245587]
[1763039649044,0.25553563,102950.0,102940.0,0.05245587]
[1763039649246,0.89580799,102950.0,102940.0,0.00053587]
[1763039649446,0.63490088,102950.0,102940.0,0.01238587]
[1763039651608,0.93405706,102950.0,102940.0,0.01238587]
[1763039651814,1.03045654,102950.0,102940.0,0.01238587]
[1763039653108,1.03045654,102950.0,102940.0,0.00053587]
[1763039653318,1.05139404,102950.0,102940.0,0.00053587]
[1763039653920,0.45308168,102950.0,102940.0,0.00053587]
[1763039654186,1.05139404,102950.0,102940.0,0.00053587]
[1763039655830,1.05139404,102950.0,102940.0,1e-08]
[1763039661822,1.07754629,102950.0,102940.0,1e-08]
[1763039662205,1.08706369,102950.0,102940.0,1e-08]
[1763039663753,1.07754629,102950.0,102940.0,1e-08]
[1763039664358,1.03558629,102950.0,102940.0,1e-08]
[1763039664700,0.75223786,102950.0,102940.0,0.05192001]
[1763039664913,1.05140271,102950.0,102940.0,0.05192001]
[1763039665878,1.00944271,102950.0,102940.0,0.05192001]
[1763039666081,0.71028653,102950.0,102940.0,0.05192001]
[1763039666292,0.6258158,102950.0,102940.0,0.05192001]
[1763039667142,0.6258158,102950.0,102940.0,0.07154266]
[1763039667535,0.6258158,102950.0,102940.0,0.05192001]
[1763039667738,0.6258158,102950.0,102940.0,0.07154266]
[1763039667957,0.6258158,102950.0,102940.0,0.05192001]
[1763039668160,0.72221528,102950.0,102940.0,0.05192001]
[1763039668325,0.72221528,102950.0,102940.0,0.07154266]
[1763039668838,0.72221528,102950.0,102940.0,0.24620794]
[1763039669041,0.29749563,102950.0,102940.0,0.24620794]
[1763039669242,0.59665181,102950.0,102940.0,0.26583059]
[1763039669442,0.59665181,102950.0,102940.0,0.05192001]
[1763039669646,0.59565181,102950.0,102940.0,0.05192001]
[1763039669865,0.59365181,102950.0,102940.0,0.05192001]
[1763039670085,0.59565181,102950.0,102940.0,0.26583059]
[1763039670247,0.59465181,102950.0,102940.0,0.26583059]
[1763039670973,0.59565181,102950.0,102940.0,0.26583059]
[1763039671321,0.29649563,102950.0,102940.0,0.26583059]
[1763039671532,0.63559968,102950.0,102940.0,0.05192001]
[1763039672140,0.67755968,102950.0,102940.0,0.05192001]
[1763039672271,0.63559968,102950.0,102940.0,0.05192001]
[1763039672479,0.3364435,102950.0,102940.0,0.05192001]
[1763039672690,0.67755968,102950.0,102940.0,0.05192001]
[1763039674089,0.63559968,102950.0,102940.0,0.05192001]
[1763039674626,0.67755968,102950.0,102940.0,0.05192001]
[1763039674828,0.3784035,102950.0,102940.0,0.05192001]
[1763039675039,0.67755968,102950.0,102940.0,0.07154266]
[1763039676576,0.67755968,102950.0,102940.0,0.05192001]
[1763039676770,0.67755968,102950.0,102940.0,0.07154266]
[1763039676955,0.63559968,102950.0,102940.0,0.07154266]
[1763039677158,0.67755968,102950.0,102940.0,0.07154266]
[1763039677535,0.63559968,102950.0,102940.0,0.07154266]
[1763039677802,0.67755968,102950.0,102940.0,0.07154266]
[1763039678297,0.63559968,102950.0,102940.0,0.05192001]
[1763039678498,0.67755968,102950.0,102940.0,0.05192001]
[1763039678708,0.67755968,102950.0,102940.0,0.07154266]
[1763039679303,0.63559968,102950.0,102940.0,0.07154266]
[1763039679506,0.67755968,102950.0,102940.0,0.07154266]
[1763039679837,0.63559968,102950.0,102940.0,0.05192001]
[1763039680066,0.67755968,102950.0,102940.0,0.05192001]
[1763039680545,0.67755968,102950.0,102940.0,0.26583059]
[1763039680977,0.67755968,102950.0,102940.0,0.07154266]
[1763039681129,0.67755968,102950.0,102940.0,0.24620794]
[1763039681335,0.67755968,102950.0,102940.0,0.26583059]
[1763039681562,0.67755968,102950.0,102940.0,0.07154266]
[1763039681748,0.06026657,102950.0,102940.0,0.24620794]
[1763039681946,0.29649563,102950.0,102940.0,0.24620794]
[1763039682310,0.29649563,102950.0,102940.0,0.26583059]
[1763039682631,0.40138275,102950.0,102940.0,0.26583059]
[1763039682847,0.59565181,102950.0,102940.0,0.26583059]
[1763039683056,0.40138275,102950.0,102940.0,0.24620794]
[1763039683241,0.40138275,102950.0,102940.0,0.26583059]
[1763039683645,0.10222657,102950.0,102940.0,0.26583059]
[1763039683866,0.25453563,102950.0,102940.0,0.26583059]
[1763039684157,0.10222657,102950.0,102940.0,0.26583059]
[1763039684533,0.29649563,102950.0,102940.0,0.26583059]
[1763039685331,0.10222657,102950.0,102940.0,0.26583059]
[1763039685448,0.29649563,102950.0,102940.0,0.26583059]
[1763039685896,0.25453563,102950.0,102940.0,0.26583059]
[1763039686095,0.29549563,102950.0,102940.0,0.26583059]
[1763039686457,0.29449563,102950.0,102940.0,0.26583059]
[1763039686747,0.29449563,102950.0,102940.0,0.26683059]
[1763039687502,0.10022657,102950.0,102940.0,0.24720794]
[1763039687717,0.05826657,102950.0,102940.0,0.56598677]
[1763039687923,0.05826657,102950.0,102940.0,0.26683059]
[1763039690318,0.53538364,102960.0,102950.0,0.19426906]
[1763039690513,0.61223194,102960.0,102950.0,0.26468171]
[1763039691146,0.61221467,102960.0,102950.0,0.26468171]
[1763039691558,0.61321467,102960.0,102950.0,0.26468171]
[1763039691772,0.31405849,102960.0,102950.0,0.05079]
[1763039691982,0.91237085,102960.0,102950.0,0.05079]
[1763039692732,0.57225467,102960.0,102950.0,0.05079]
[1763039692949,0.61421467,102960.0,102950.0,0.07041265]
[1763039693148,0.57225467,102960.0,102950.0,0.05079]
[1763039693342,0.57225467,102960.0,102950.0,0.07041265]
[1763039693596,0.61421467,102960.0,102950.0,0.07041265]
[1763039693807,0.87141085,102960.0,102950.0,0.05079]
[1763039694029,0.87141085,102960.0,102950.0,0.01154]
[1763039694030,1.2707936,102960.0,102950.0,0.01154]
[1763039694241,0.97163742,102960.0,102950.0,0.01154]
[1763039694452,1.00079872,102960.0,102950.0,0.01154]
[1763039695987,1.00079872,102960.0,102950.0,0.02751]
[1763039696162,1.00079872,102960.0,102950.0,0.05079]
[1763039697380,1.00989222,102960.0,102950.0,0.05079]
[1763039697833,1.00079872,102960.0,102950.0,0.05079]
[1763039699655,1.00989258,102960.0,102950.0,0.02751]
[1763039699861,1.00989258,102960.0,102950.0,0.01154]
[1763039700850,1.00989247,102960.0,102950.0,0.01154]
[1763039701053,0.41158011,102960.0,102950.0,0.01154]
[1763039701254,1.00989247,102960.0,102950.0,0.01154]
[1763039703112,0.9580358,102960.0,102950.0,0.01154]
[1763039704836,0.9580358,102960.0,102950.0,0.02778]
[1763039705581,0.9580358,102960.0,102950.0,0.05274]
[1763039706107,0.9580358,102960.0,102950.0,0.07236265]
[1763039706677,0.9580358,102960.0,102950.0,0.05274]
[1763039706881,1.03269106,102960.0,102950.0,0.07236265]
[1763039707259,0.99073106,102960.0,102950.0,0.05274]
[1763039707463,0.77428314,102960.0,102950.0,0.05274]
[1763039707648,0.77428314,102960.0,102950.0,0.07236265]
[1763039707845,0.73232314,102960.0,102950.0,0.07236265]
[1763039708086,0.77428314,102960.0,102950.0,0.05274]
[1763039708494,0.77428314,102960.0,102950.0,0.07236265]
[1763039708699,0.77428314,102960.0,102950.0,0.05274]
[1763039708896,0.77428314,102960.0,102950.0,0.07236265]
[1763039709884,1.09500516,102960.0,102950.0,0.05274]
[1763039712567,1.09500516,102960.0,102950.0,0.07236265]
[1763039712981,1.09500516,102960.0,102950.0,0.05274]
[1763039713203,1.09500516,102960.0,102950.0,0.07236265]
[1763039713377,1.09500516,102960.0,102950.0,0.05274]
[1763039713820,1.09500516,102960.0,102950.0,0.07236265]
[1763039714031,1.09500516,102960.0,102950.0,0.05274]
[1763039714239,0.99860568,102960.0,102950.0,0.05274]
[1763039714424,0.99860568,102960.0,102950.0,0.07236265]
[1763039714629,0.95664568,102960.0,102950.0,0.05274]
[1763039714825,0.99860568,102960.0,102950.0,0.05274]
[1763039715050,0.99860568,102960.0,102950.0,0.07236265]
[1763039715527,0.99860568,102960.0,102950.0,0.05274]
[1763039718960,0.99860568,102960.0,102950.0,0.07236265]
[1763039720653,0.99860568,102960.0,102950.0,0.05274]
[1763039721236,0.99860568,102960.0,102950.0,0.07236265]
[1763039721912,0.99860568,102960.0,102950.0,0.05274]
[1763039722685,0.99860568,102960.0,102950.0,0.07236265]
[1763039722891,0.99860568,102960.0,102950.0,0.05274]
[1763039723215,0.99860568,102960.0,102950.0,0.07236265]
[1763039724077,0.32563806,102960.0,102950.0,0.05274]
[1763039724285,0.77428314,102960.0,102950.0,0.05274]
[1763039724891,0.77428314,102960.0,102950.0,0.07236265]
[1763039726005,0.32563806,102960.0,102950.0,0.05274]
[1763039726170,0.77428314,102960.0,102950.0,0.07236265]
[1763039726379,0.32563806,102960.0,102950.0,0.07236265]
[1763039726579,0.77428314,102960.0,102950.0,0.07236265]
[1763039726889,0.77428314,102960.0,102950.0,0.26663171]
[1763039727543,0.79036823,102960.0,102950.0,0.05274]
[1763039727741,0.77428314,102960.0,102950.0,0.05274]
[1763039728119,0.77428314,102960.0,102950.0,0.07236265]
[1763039728347,0.77428314,102960.0,102950.0,0.05274]
[1763039730175,0.77428314,102960.0,102950.0,0.07236265]
[1763039731208,0.77428314,102960.0,102950.0,0.05274]
[1763039732350,0.38236932,102960.0,102950.0,0.05274]
[1763039732556,0.99860568,102960.0,102950.0,0.05274]
[1763039732767,0.73232314,102960.0,102950.0,0.07236265]
[1763039732974,0.77428314,102960.0,102950.0,0.07236265]
[1763039733526,0.77428314,102960.0,102950.0,0.05274]
[1763039733732,0.77428314,102960.0,102950.0,0.07236265]
[1763039734530,0.77428314,102960.0,102950.0,0.05274]
[1763039734735,0.77428314,102960.0,102950.0,0.07236265]
[1763039735846,0.77428314,102960.0,102950.0,0.05274]
[1763039736075,0.77428314,102960.0,102950.0,0.07236265]
[1763039736282,1.05304516,102960.0,102950.0,0.05274]
[1763039736462,1.09500516,102960.0,102950.0,0.01154]
[1763039736804,1.09500516,102960.0,102950.0,0.02759]
[1763039737032,1.09500516,102960.0,102950.0,0.05205]
[1763039738426,0.73232314,102960.0,102950.0,0.05205]
[1763039738635,0.77428314,102960.0,102950.0,0.05205]
[1763039738843,0.0311613,102960.0,102950.0,0.69496414]
[1763039739057,0.0011417,102970.0,102960.0,0.21387284]
[1763039739262,0.0431017,102970.0,102960.0,0.49027538]
[1763039739655,0.0011417,102970.0,102960.0,0.49027538]
[1763039739903,0.0431017,102970.0,102960.0,0.71459792]
[1763039740112,0.0011417,102970.0,102960.0,0.71459792]
[1763039740287,0.0011417,102970.0,102960.0,0.69497527]
[1763039740463,0.0011417,102970.0,102960.0,0.71459792]
[1763039740796,0.0011417,102970.0,102960.0,0.71559792]
[1763039741001,0.0021417,102970.0,102960.0,0.75755792]
[1763039741208,0.0021417,102970.0,102960.0,0.98188046]